bitfinex/quotes_ETHUSD_20260114
["timestamp","ask_amount","ask_price","bid_price","bid_amount"]
[1768382557166,0.25344145,3328.2,3327.8,1.21269897]
[1768382557467,0.25344145,3328.1,3327.8,1.21269897]
[1768382557650,3.00456686,3328.3,3327.8,1.21269897]
[1768382557842,0.2534576,3328.2,3327.8,1.21269897]
[1768382558141,0.2534576,3328.1,3327.8,1.21269897]
[1768382558463,3.00456686,3328.3,3327.8,1.21269897]
[1768382558670,0.25344197,3328.2,3328.1,0.001]
[1768382558848,0.25344197,3328.2,3328.1,0.414]
[1768382559044,0.25344197,3328.2,3327.8,1.21269897]
[1768382559045,3.25806909,3328.2,3327.8,1.21269897]
[1768382559247,3.25806909,3328.2,3327.6,0.001]
[1768382559248,0.25344197,3328.1,3327.9,0.413]
[1768382559474,4.15472183,3328.3,3327.9,0.413]
[1768382559675,0.25343857,3328.2,3327.9,0.413]
[1768382559836,0.25343857,3328.1,3327.9,0.413]
[1768382560171,4.15454932,3328.5,3327.9,3.75966544]
[1768382560338,0.25341439,3328.4,3327.9,3.75966544]
[1768382560540,0.25341439,3328.3,3327.9,3.75966544]
[1768382560740,4.15447871,3328.6,3328.0,3.00478966]
[1768382560963,4.15447871,3328.6,3327.6,0.001]
[1768382560964,1.40359949,3328.5,3327.6,0.001]
[1768382561194,1.15018498,3328.3,3327.7,0.413]
[1768382561477,1.15018498,3328.3,3327.6,0.001]
[1768382561645,1.15018498,3328.3,3327.8,0.413]
[1768382561844,1.15018498,3328.2,3327.8,0.413]
[1768382562037,1.15018498,3328.2,3327.6,0.001]
[1768382562268,1.15018498,3328.2,3327.9,0.413]
[1768382563472,1.15018498,3328.2,3327.8,3.00498668]
[1768382563661,1.15018498,3328.2,3327.9,0.413]
[1768382564065,4.18473846,3328.4,3327.9,0.413]
[1768382564278,0.25335166,3328.3,3327.9,0.413]
[1768382564571,1.86910177,3328.4,3327.9,0.413]
[1768382564779,0.25333097,3328.3,3327.9,0.413]
[1768382564972,4.87355118,3328.4,3327.9,0.413]
[1768382565179,0.25333157,3328.3,3327.9,0.413]
[1768382565347,0.25333157,3328.2,3327.9,0.413]
[1768382565548,1.15018498,3328.3,3327.9,0.413]
[1768382565949,4.15457085,3328.5,3327.9,3.41789495]
[1768382566150,0.25332195,3328.4,3327.9,3.41789495]
[1768382566349,0.25332195,3328.3,3327.9,4.18445349]
[1768382566562,4.15438472,3328.7,3327.9,4.21450246]
[1768382566888,0.25327037,3328.6,3327.9,6.4528419]
[1768382567046,0.25327037,3328.5,3327.9,6.4528419]
[1768382567247,0.25324599,3328.4,3327.9,3.44794392]
[1768382567578,4.15439755,3328.7,3327.9,6.42279293]
[1768382567772,0.25324882,3328.6,3327.9,3.41789495]
[1768382567949,0.25324882,3328.5,3327.9,8.7786701]
[1768382568148,4.15436831,3328.7,3327.9,8.74862113]
[1768382568354,3.00401089,3328.9,3327.9,8.74862113]
[1768382568355,1.15018498,3328.9,3328.0,6.50069842]
[1768382568571,0.25322294,3328.8,3328.1,1.21269897]
[1768382568761,4.15401851,3329.1,3328.2,1.98403871]
[1768382568966,0.25323186,3329.0,3328.2,1.98403871]
[1768382569167,0.25323186,3328.9,3328.3,1.21269897]
[1768382569369,0.25323186,3328.8,3328.4,3.41744658]
[1768382569679,3.00393156,3329.0,3328.4,3.41744658]
[1768382569877,0.25313581,3328.9,3328.4,3.41744658]
[1768382570078,0.25313581,3328.8,3328.4,3.41744658]
[1768382570281,3.00393156,3329.0,3328.4,1.62569897]
[1768382570478,0.25307061,3328.9,3328.4,1.62569897]
[1768382570681,0.25307061,3328.8,3328.4,0.413]
[1768382570882,4.15411654,3329.0,3328.4,0.413]
[1768382571079,0.002,3328.6,3328.4,0.413]
[1768382576687,0.002,3328.6,3328.4,1.62569897]
[1768382578691,0.002,3329.3,3328.4,1.62569897]
[1768382578692,0.002,3329.3,3328.6,1.21269897]
[1768382579052,1.15218498,3329.3,3328.6,1.21269897]
[1768382580287,4.15583513,3329.3,3328.6,1.21269897]
[1768382580492,1.15218498,3329.3,3328.4,6.96198821]
[1768382580693,1.15218498,3329.3,3328.6,6.0085321]
[1768382580892,0.002,3329.3,3328.7,1.21269897]
[1768382581193,0.002,3329.3,3328.8,1.62569897]
[1768382581606,0.002,3329.3,3328.8,0.413]
[1768382582103,3.00564368,3329.3,3328.8,0.413]
[1768382582260,0.002,3329.3,3328.8,0.413]
[1768382583347,1.15218498,3329.3,3328.8,0.413]
[1768382583467,0.002,3329.0,3328.8,0.413]
[1768382583808,1.15218498,3329.3,3328.8,0.413]
[1768382583975,1.15018498,3329.2,3328.8,0.413]
[1768382584377,1.15018498,3329.2,3328.9,0.413]
[1768382584704,1.18024856,3329.1,3328.9,0.413]
[1768382585110,1.18024856,3329.1,3328.8,0.413]
[1768382585264,0.41840578,3329.0,3328.8,0.413]
[1768382585661,0.41840578,3329.0,3328.4,3.00444658]
[1768382585874,1.66500631,3329.0,3328.5,0.413]
[1768382586977,1.24660053,3329.0,3328.5,0.413]
[1768382587191,1.24660053,3329.0,3328.5,3.4173325]
[1768382588310,1.24660053,3329.0,3328.4,3.00441682]
[1768382588511,1.24660053,3329.0,3328.5,0.413]
[1768382589405,1.24660053,3328.9,3328.3,3.00451972]
[1768382589575,1.24660053,3328.9,3328.6,0.413]
[1768382589576,1.67465757,3328.9,3328.6,0.413]
[1768382589777,1.24660053,3328.8,3328.4,0.413]
[1768382590179,1.24660053,3328.8,3328.1,3.00463315]
[1768382590482,1.24660053,3328.8,3328.4,0.413]
[1768382592111,4.25077633,3328.7,3327.9,7.30189013]
[1768382592311,1.24660053,3328.6,3328.0,0.413]
[1768382594221,4.25091636,3328.6,3328.0,3.41779011]
[1768382594916,7.25523219,3328.6,3327.8,1.29217374]
[1768382595111,1.24660053,3328.5,3327.9,0.413]
[1768382595432,0.57771758,3328.4,3327.9,3.41787824]
[1768382595596,1.24660053,3328.5,3328.3,0.001]
[1768382596218,4.25097563,3328.5,3328.3,0.001]
[1768382601028,3.0043751,3328.5,3328.3,0.001]
[1768382610129,4.31628934,3328.6,3328.3,0.001]
[1768382612927,3.0343595,3328.6,3328.3,0.001]
[1768382613125,3.00429592,3328.6,3328.3,0.001]
[1768382615467,3.81046171,3328.6,3328.3,0.001]
[1768382616232,0.253115,3328.5,3328.3,0.001]
[1768382616433,3.81046171,3328.6,3328.3,0.001]
[1768382616648,0.253115,3328.5,3328.3,0.001]
[1768382616836,3.81046171,3328.6,3328.3,0.001]
[1768382617037,0.63416117,3328.5,3328.3,0.001]
[1768382617250,0.38104617,3328.5,3328.3,0.001]
[1768382618471,3.38543588,3328.5,3328.3,0.414]
[1768382618659,3.00438971,3328.5,3328.2,0.413]
[1768382618848,3.00438971,3328.5,3328.1,0.413]
[1768382619249,0.25333063,3328.4,3328.1,0.413]
[1768382619453,3.00438971,3328.5,3328.1,0.413]
[1768382619767,0.25333063,3328.4,3328.1,0.413]
[1768382620071,3.00438971,3328.5,3328.1,0.413]
[1768382620237,0.25336909,3328.4,3328.1,0.413]
[1768382620437,3.00432914,3328.6,3328.1,0.413]
[1768382620736,0.25336909,3328.5,3328.1,3.4177155]
[1768382620949,0.25336909,3328.4,3328.1,3.4177155]
[1768382621275,3.00432914,3328.6,3328.1,0.413]
[1768382621569,0.25342729,3328.5,3328.1,0.413]
[1768382621739,0.25342729,3328.4,3328.1,0.413]
[1768382621937,3.00432914,3328.6,3328.1,0.413]
[1768382622152,0.25342729,3328.5,3328.1,0.413]
[1768382622360,0.25342729,3328.4,3328.1,0.413]
[1768382622581,0.25342729,3328.3,3328.1,0.413]
[1768382622744,3.73336632,3328.6,3328.1,0.413]
[1768382622945,3.73336632,3328.6,3328.1,3.41770328]
[1768382622946,0.25353706,3328.5,3328.1,3.41770328]
[1768382623167,0.25353706,3328.4,3328.1,3.41770328]
[1768382623365,0.25353706,3328.3,3328.1,3.41770328]
[1768382623568,3.73336632,3328.6,3328.1,3.41770328]
[1768382623887,0.62687684,3328.5,3328.1,0.413]
[1768382624091,0.25354021,3328.4,3328.1,0.413]
[1768382624259,0.25354021,3328.3,3328.1,0.413]
[1768382624459,3.73336632,3328.6,3328.1,0.413]
[1768382624673,0.25355211,3328.5,3328.1,0.413]
[1768382624893,0.25355211,3328.4,3328.1,0.413]
[1768382625052,0.25355211,3328.3,3328.1,0.413]
[1768382625247,0.39869525,3328.4,3328.1,0.413]
[1768382625446,4.28602281,3328.8,3328.1,3.41769422]
[1768382625447,0.25355385,3328.3,3328.1,3.41769422]
[1768382625686,3.00399531,3328.9,3328.2,1.34723316]
[1768382625887,3.00399531,3328.9,3328.3,0.0209008]
[1768382626048,3.00399531,3328.9,3328.3,1.36813396]
[1768382626656,6.00744922,3329.2,3328.4,1.34723316]
[1768382626978,1.37658175,3329.1,3328.5,0.413]
[1768382630382,3.00390507,3329.0,3328.5,0.413]
[1768382630545,6.00781014,3329.0,3328.5,0.413]
[1768382631569,3.00390507,3329.0,3328.5,0.413]
[1768382632084,3.00390507,3329.0,3328.6,0.001]
[1768382632287,6.40829275,3329.0,3328.6,0.001]
[1768382634486,6.40829275,3329.0,3328.6,0.414]
[1768382634784,6.43835633,3329.0,3328.6,0.414]
[1768382636277,6.43835633,3329.0,3328.5,0.413]
[1768382636481,7.75267355,3329.0,3328.5,0.413]
[1768382636678,0.77526736,3328.9,3328.5,0.413]
[1768382637554,0.24672296,3328.8,3328.5,0.413]
[1768382637775,3.25090246,3328.7,3328.5,0.413]
[1768382638084,0.24672296,3328.6,3328.5,0.413]
[1768382639790,0.24672602,3328.6,3328.5,0.413]
[1768382639961,3.00399531,3328.9,3328.5,0.413]
[1768382640162,0.24672602,3328.8,3328.5,0.413]
[1768382640501,0.24672602,3328.7,3328.5,0.413]
[1768382640787,0.24672602,3328.6,3328.5,0.413]
[1768382640990,0.24672602,3328.8,3328.5,0.413]
[1768382642397,0.03006358,3329.0,3328.5,3.00435631]
[1768382642596,1.3443808,3329.2,3328.6,0.71343563]
[1768382642762,1.3443808,3329.2,3328.6,0.413]
[1768382643393,9.44768544,3329.3,3328.6,1.76023316]
[1768382643604,6.44405105,3329.3,3328.7,1.34723316]
[1768382644200,0.002,3329.0,3328.8,4.35131871]
[1768382644504,0.002,3329.0,3328.9,1.34723316]
[1768382645115,0.002,3329.3,3329.0,1.34723316]
[1768382645282,0.002,3329.3,3329.1,1.81341614]
[1768382645680,0.002,3329.9,3329.3,1.40041614]
[1768382646212,0.44063425,3329.8,3329.2,6.00744922]
[1768382646406,1.42263425,3330.0,3329.8,0.02089139]
[1768382647021,1.42263425,3330.0,3329.7,0.413]
[1768382647230,1.42263425,3330.0,3329.6,0.413]
[1768382647422,0.002,3330.0,3329.6,0.413]
[1768382647623,1.42063425,3329.9,3329.6,3.41636368]
[1768382647823,0.002,3330.0,3329.6,3.41636368]
[1768382648488,0.002,3330.0,3329.6,4.81677982]
[1768382648706,0.002,3330.0,3329.7,1.40041614]
[1768382648989,0.002,3330.0,3329.6,3.41636368]
[1768382649724,1.42263425,3330.0,3329.6,3.41636368]
[1768382650229,0.002,3330.0,3329.7,1.40041614]
[1768382652153,0.002,3330.0,3329.7,4.40364504]
[1768382653325,0.002,3330.0,3329.8,1.40041614]
[1768382653531,0.002,3330.2,3329.8,1.40041614]
[1768382654060,0.002,3330.2,3329.9,1.40041614]
[1768382655962,0.002,3330.2,3329.7,4.40360793]
[1768382656661,0.002,3330.2,3329.8,1.40041614]
[1768382657930,0.002,3330.2,3329.9,0.413]
[1768382659396,0.002,3330.2,3329.9,3.4160918]
[1768382660897,0.002,3330.2,3329.9,0.413]
[1768382666904,0.002,3330.2,3329.8,3.00316447]
[1768382667088,0.002,3330.2,3329.8,1.38661597]
[1768382670020,0.002,3330.2,3329.8,4.38976651]
[1768382672625,0.002,3330.2,3329.9,1.38661597]
[1768382673395,0.002,3330.2,3329.9,4.38967449]
[1768382673805,0.002,3330.2,3330.0,0.413]
[1768382674305,0.002,3330.2,3330.1,1.38661597]
[1768382675230,0.002,3330.2,3330.0,0.413]
[1768382675630,0.002,3330.2,3330.0,1.78213677]
[1768382676138,0.002,3330.2,3330.1,0.413]
[1768382676341,0.002,3330.2,3329.8,0.413]
[1768382676717,6.00678012,3330.7,3330.4,1.36913677]
[1768382676718,0.002,3330.7,3330.4,1.36913677]
[1768382676929,0.002,3330.7,3330.0,6.00592976]
[1768382676930,0.002,3330.7,3330.3,0.413]
[1768382677308,0.002,3330.7,3330.3,1.78213677]
[1768382677747,0.002,3330.7,3330.4,4.37177909]
[1768382680013,0.002,3330.7,3330.5,1.36913677]
[1768382680239,0.002,3331.0,3330.6,1.36913677]
[1768382680846,0.002,3331.0,3330.6,1.37013677]
[1768382682132,0.002,3331.0,3330.6,4.37258385]
[1768382682352,0.002,3331.0,3330.6,3.00344708]
[1768382682863,0.002,3331.0,3330.6,6.00590909]
[1768382683056,0.002,3331.0,3330.6,6.82128878]
[1768382683261,0.002,3331.0,3330.6,8.19042555]
[1768382683961,0.002,3331.2,3330.6,8.60342555]
[1768382684256,0.002,3331.2,3330.7,0.413]
[1768382686275,0.557,3331.3,3330.8,13.86708465]
[1768382686561,0.557,3331.3,3330.9,1.42800847]
[1768382687263,0.557,3331.3,3330.8,3.00228173]
[1768382687562,0.557,3331.3,3330.6,2.59851646]
[1768382687563,4.98017466,3331.3,3330.6,2.59851646]
[1768382687861,4.98017466,3331.3,3330.7,3.00234938]
[1768382691083,3.55887765,3331.3,3330.7,3.00234938]
[1768382691268,4.98017466,3331.3,3330.7,3.00234938]
[1768382692407,4.98017466,3331.3,3330.6,3.8188118]
[1768382692837,0.002,3331.0,3330.6,3.8188118]
[1768382693043,0.002,3331.0,3330.6,5.18794857]
[1768382696099,0.002,3331.0,3330.6,8.19041058]
[1768382696328,0.002,3331.0,3330.7,2.18818594]
[1768382698629,0.002,3331.0,3330.8,3.00228173]
[1768382700311,0.002,3331.0,3330.7,5.19051891]
[1768382701341,0.002,3331.0,3330.7,3.82138214]
[1768382701638,0.002,3331.0,3330.7,3.00233297]
[1768382701843,0.002,3331.0,3330.3,3.00267406]
[1768382701844,1.42329701,3331.0,3330.3,3.00267406]
[1768382702241,1.42329701,3331.0,3329.8,0.47854384]
[1768382702539,1.42129701,3330.8,3330.0,3.00292286]
[1768382703045,1.42129701,3330.6,3330.0,3.00292286]
[1768382703342,1.42129701,3330.6,3330.0,3.69268583]
[1768382704821,1.42129701,3330.5,3330.0,3.00292286]
[1768382705146,3.00254672,3330.6,3329.9,4.92534236]
[1768382705458,3.00254672,3330.6,3330.0,3.00299927]
[1768382705814,3.00254672,3330.6,3330.3,0.001]
[1768382708652,6.00509344,3330.6,3330.3,0.001]
[1768382708846,8.25259594,3330.6,3330.3,0.001]
[1768382709016,1.74478178,3330.5,3330.3,0.001]
[1768382709350,1.50486345,3330.5,3330.3,0.001]
[1768382709726,3.00264232,3330.4,3330.3,0.001]
[1768382711354,4.50745058,3330.5,3330.3,0.001]
[1768382712231,5.33271422,3330.5,3330.3,0.001]
[1768382712926,1.50486345,3330.4,3329.7,1.50926931]
[1768382714353,3.00273248,3330.3,3329.7,4.51252542]
[1768382715364,6.00528464,3330.4,3329.7,4.51252542]
[1768382715547,3.00264232,3330.4,3329.7,4.51252542]
[1768382716172,6.00528464,3330.4,3329.7,1.50926931]
[1768382716362,0.68305483,3330.3,3329.7,1.50926931]
[1768382716734,0.68305483,3330.3,3329.7,3.00326213]
[1768382717130,2.18791828,3330.3,3329.7,3.00326213]
[1768382717366,5.19066385,3330.3,3330.0,0.001]
[1768382717536,3.6858004,3330.3,3330.0,0.001]
[1768382720142,0.68305483,3330.3,3330.0,0.001]
[1768382720491,0.413,3330.8,3330.2,1.48125309]
[1768382720640,0.002,3331.0,3330.5,1.48125309]
[1768382720839,0.002,3331.0,3330.6,1.48125309]
[1768382722476,0.002,3331.6,3331.0,1.48125309]
[1768382724446,0.002,3331.6,3331.2,1.48125309]
[1768382726762,0.002,3331.6,3331.3,3.00183111]
[1768382726959,0.002,3331.6,3330.7,3.00232605]
[1768382726960,0.002,3331.6,3331.1,3.00194747]
[1768382727283,0.002,3331.6,3331.0,1.48125309]
[1768382727987,0.002,3331.6,3331.1,3.00195165]
[1768382729575,0.002,3331.6,3331.3,0.001]
[1768382730077,1.52037272,3331.6,3331.3,0.001]
[1768382730494,0.002,3331.6,3331.3,0.001]
[1768382731197,1.51837272,3331.5,3331.3,0.001]
[1768382734761,0.002,3331.6,3331.3,0.001]
[1768382734966,1.52037272,3331.6,3331.3,0.001]
[1768382735298,1.98193115,3331.6,3331.3,0.001]
[1768382736677,0.46355843,3331.6,3331.3,0.001]
[1768382737603,1.88962493,3331.6,3331.3,0.001]
[1768382738596,0.46355843,3331.6,3331.3,0.001]
[1768382738802,0.002,3331.6,3331.3,0.001]
[1768382739374,0.002,3331.6,3331.3,3.00283111]
[1768382739699,0.002,3331.6,3331.4,1.47966179]
[1768382741582,0.002,3331.6,3331.5,1.47966179]
[1768382744602,0.002,3331.6,3331.5,4.48131269]
[1768382745901,0.002,3331.7,3331.5,4.48131269]
[1768382745902,0.413,3332.1,3331.6,1.47966179]
[1768382746318,0.413,3332.1,3331.7,4.48113251]
[1768382746502,0.413,3332.1,3331.8,1.47966179]
[1768382746997,0.413,3332.1,3331.7,3.00147072]
[1768382747508,0.413,3332.1,3331.7,4.48113251]
[1768382747720,3.41376635,3332.5,3331.8,1.47966179]
[1768382748013,0.413,3332.5,3331.8,1.47966179]
[1768382748509,0.413,3332.5,3331.8,4.48097535]
[1768382748510,0.23962368,3332.4,3331.8,4.48097535]
[1768382748729,3.41375908,3332.5,3331.8,4.48097535]
[1768382748880,0.23962368,3332.4,3331.8,4.48097535]
[1768382749074,0.413,3332.5,3331.8,4.48097535]
[1768382749279,0.23973669,3332.4,3331.8,4.48097535]
[1768382749485,0.8973653,3332.5,3331.8,4.48097535]
[1768382749692,0.23973669,3332.4,3331.8,4.48097535]
[1768382749979,0.8973653,3332.5,3331.8,4.48097535]
[1768382750194,0.23973669,3332.4,3331.8,4.48097535]
[1768382750392,3.89812758,3332.5,3331.8,4.48097535]
[1768382750597,0.23990342,3332.4,3331.8,4.48097535]
[1768382750795,3.89812758,3332.5,3331.8,4.48097535]
[1768382751000,0.23990342,3332.4,3331.8,4.48097535]
[1768382751200,0.23990342,3332.3,3331.8,4.48097535]
[1768382751384,3.8981283,3332.5,3331.8,4.48097535]
[1768382751598,0.23989866,3332.4,3331.8,4.48097535]
[1768382751921,0.23989866,3332.3,3331.8,1.47966179]
[1768382752074,5.41600109,3332.5,3331.8,1.47966179]
[1768382752277,0.84954289,3332.4,3331.8,1.47966179]
[1768382752498,0.23989866,3332.3,3331.8,1.47966179]
[1768382752705,0.23989866,3332.3,3331.7,3.00142914]
[1768382752946,0.23989866,3332.3,3331.8,3.00137792]
[1768382753347,3.24082926,3332.3,3331.7,3.00144331]
[1768382753508,3.61052148,3332.4,3331.7,4.4811051]
[1768382753711,0.23988852,3332.3,3331.7,4.4811051]
[1768382753929,0.60964423,3332.4,3331.8,3.00137742]
[1768382754113,0.23988852,3332.3,3331.8,3.00137742]
[1768382754327,4.93166822,3332.5,3331.8,3.00137742]
[1768382754529,0.23988064,3332.4,3331.8,3.00137742]
[1768382754726,0.002,3332.0,3331.8,4.48103921]
[1768382755946,0.002,3332.3,3331.8,4.48103921]
[1768382756292,0.002,3332.3,3331.7,3.41444213]
[1768382756611,0.002,3332.3,3331.8,3.00136638]
[1768382756805,0.002,3332.3,3331.9,1.47966179]
[1768382757348,0.002,3332.3,3331.9,0.413]
[1768382758052,0.002,3332.3,3331.9,3.41420671]
[1768382758254,1.4260665,3332.5,3331.9,3.41420671]
[1768382759046,0.002,3332.6,3331.9,3.41420671]
[1768382759225,3.00267811,3332.6,3331.9,3.41420671]
[1768382759419,0.002,3332.6,3332.0,1.47966179]
[1768382760019,0.002,3332.6,3332.0,4.48081351]
[1768382760228,0.002,3332.6,3331.9,3.41424728]
[1768382760536,0.002,3332.6,3331.9,0.413]
[1768382761351,1.4280665,3332.6,3331.9,0.413]
[1768382761717,1.4280665,3332.6,3332.0,3.00119755]
[1768382762153,0.002,3332.6,3332.0,3.00119755]
[1768382763959,3.00270959,3332.6,3331.9,4.89390921]
[1768382764328,0.09180629,3332.5,3331.7,4.48112852]
[1768382764651,1.51787279,3332.5,3331.7,4.48109979]
[1768382764952,1.51787279,3332.3,3331.6,3.4145594]
[1768382765144,1.51787279,3332.3,3331.7,3.00143555]
[1768382765951,1.51787279,3332.3,3331.5,6.00327301]
[1768382766124,1.51787279,3332.3,3331.5,6.79296649]
[1768382766328,1.57706474,3332.2,3331.4,7.48310604]
[1768382767456,1.57706474,3332.2,3331.4,3.00170325]
[1768382768966,4.57817515,3332.1,3331.3,3.00283111]
[1768382769258,4.57817515,3332.1,3331.3,6.00466222]
[1768382769562,1.57706474,3332.1,3331.3,3.00283111]
[1768382770664,1.57706474,3332.1,3331.3,0.001]
[1768382772576,1.57706474,3332.1,3331.3,0.80072845]
[1768382773272,1.57706474,3332.1,3331.4,6.003482]
[1768382774038,4.67184686,3332.3,3331.4,7.58292402]
[1768382774377,0.24005209,3332.2,3331.4,7.58292402]
[1768382774580,1.67087103,3332.3,3331.4,7.58292402]
[1768382774875,1.67087103,3332.3,3331.6,1.57944202]
[1768382775092,1.67087103,3332.3,3331.6,1.60945762]
[1768382775437,1.67087103,3332.3,3331.7,3.00147072]
[1768382775756,0.09380629,3332.3,3331.7,4.58091274]
[1768382775962,0.09380629,3332.3,3331.8,1.57944202]
[1768382776367,0.24016261,3332.2,3331.8,1.57944202]
[1768382776554,0.002,3332.3,3331.8,1.57944202]
[1768382778809,0.002,3332.3,3331.8,4.58077521]
[1768382779279,0.002,3332.0,3331.8,4.58077521]
[1768382780686,0.002,3332.0,3331.1,1.56003201]
[1768382780887,0.002,3332.0,3331.2,0.413]
[1768382781045,0.002,3332.0,3331.3,6.00366222]
[1768382781243,0.002,3332.0,3331.3,7.56369423]
[1768382781439,0.002,3332.0,3331.4,2.35770143]
[1768382782783,0.002,3332.0,3331.5,3.0016509]
[1768382784187,0.002,3332.0,3331.5,6.0033018]
[1768382784378,0.002,3332.0,3331.6,1.56003201]
[1768382785309,0.002,3332.0,3331.6,4.56151034]
[1768382786392,0.002,3332.0,3331.6,5.35912646]
[1768382787590,0.002,3332.0,3331.6,4.56151034]
[1768382787763,0.002,3332.0,3331.6,7.56307115]
[1768382788591,0.002,3332.3,3331.6,7.56307115]
[1768382791486,0.002,3332.0,3331.6,6.00303914]
[1768382791686,0.002,3332.0,3331.6,3.00147833]
[1768382792308,0.002,3332.0,3331.5,6.0033018]
[1768382792508,0.002,3332.0,3331.5,7.44935769]
[1768382793008,1.63109134,3332.0,3331.5,7.44935769]
[1768382793704,0.002,3332.0,3331.5,7.44935769]
[1768382794112,1.62909134,3331.8,3330.7,1.56003201]
[1768382794409,1.72089763,3331.8,3331.0,3.00207929]
[1768382794610,1.72089763,3331.8,3331.1,3.00199829]
[1768382794819,1.88041496,3331.7,3331.1,3.00199829]
[1768382795005,1.62909134,3331.7,3331.1,3.00199829]
[1768382796007,1.62909134,3331.7,3330.9,6.00438318]
[1768382796207,1.62909134,3331.7,3330.9,6.8021247]
[1768382797905,1.62909134,3331.7,3330.9,0.79774152]
[1768382798093,1.62909134,3331.7,3330.1,3.00291282]
[1768382798094,0.09180629,3330.5,3330.1,3.00291282]
[1768382798292,0.08676756,3330.5,3330.1,3.00291282]
[1768382799920,2.14574907,3330.8,3330.1,7.62073743]
[1768382800083,0.50480629,3330.8,3330.2,0.76217374]
[1768382801414,0.413,3330.9,3330.3,1.61491179]
[1768382801714,0.413,3330.9,3330.5,1.61491179]
[1768382801909,0.09180629,3331.2,3330.6,0.03002462]
[1768382802277,0.09180629,3331.0,3330.6,0.03002462]
[1768382802681,0.09180629,3331.0,3330.5,1.61491179]
[1768382802908,0.09180629,3331.0,3330.4,3.00264232]
[1768382803078,0.09180629,3331.0,3330.4,6.10422117]
[1768382804317,0.09180629,3331.0,3330.6,0.001]
[1768382805512,0.09180629,3331.1,3330.6,0.001]
[1768382805711,0.09180629,3331.2,3330.6,0.001]
[1768382806616,0.09180629,3331.2,3330.6,3.00346201]
[1768382806805,0.09180629,3331.2,3330.7,0.76209196]
[1768382807217,1.64094278,3331.1,3330.7,0.76209196]
[1768382807518,1.64094278,3330.2,3329.4,3.00354418]
[1768382807706,0.413,3330.3,3329.4,4.01237889]
[1768382808014,1.64094278,3330.2,3329.4,3.00354418]
[1768382808622,1.64094278,3330.2,3329.4,6.00708836]
[1768382809288,4.64378333,3330.2,3329.4,6.00708836]
[1768382812020,1.64094278,3330.1,3329.4,6.00708836]
[1768382812325,1.64094278,3330.1,3329.4,7.39943992]
[1768382814033,1.64094278,3330.0,3329.4,3.00354418]
[1768382814899,3.00287193,3330.2,3329.4,6.00708836]
[1768382814900,1.64094278,3330.2,3329.4,6.00708836]
[1768382815204,1.64094278,3330.2,3329.6,6.48422509]
[1768382815405,1.64094278,3330.2,3329.7,0.03003273]
[1768382816021,0.413,3330.3,3329.7,0.03003273]
[1768382816619,3.41575308,3330.3,3329.7,3.03329849]
[1768382816924,5.05669586,3330.3,3329.7,3.03329849]
[1768382817300,0.002,3330.0,3329.7,3.03329849]
[1768382819416,1.64094278,3330.8,3329.9,7.74432792]
[1768382819736,1.64094278,3330.8,3330.1,1.26010283]
[1768382820105,2.05394278,3331.0,3330.1,1.26010283]
[1768382820303,1.64094278,3330.9,3329.9,6.00618636]
[1768382820628,1.64094278,3330.8,3330.0,1.13962892]
[1768382822439,1.64094278,3330.8,3330.1,6.00582564]
[1768382824759,0.413,3331.0,3330.1,6.00582564]
[1768382824912,0.413,3331.0,3330.3,8.09913688]
[1768382825238,0.002,3331.4,3330.3,8.09913688]
[1768382825239,0.002,3331.4,3330.6,6.48422509]
[1768382825409,1.86050086,3331.4,3330.7,0.82711564]
[1768382825831,1.86050086,3331.4,3330.8,6.00456346]
[1768382826138,0.002,3331.4,3330.8,6.00456346]
[1768382826348,0.413,3331.6,3331.0,1.78693133]
[1768382827057,0.002,3331.7,3331.0,1.78693133]
[1768382827217,0.002,3331.7,3331.3,1.78693133]
[1768382828157,0.002,3331.7,3331.4,3.001741]
[1768382828976,0.002,3331.7,3331.4,6.003482]
[1768382829288,0.002,3331.7,3331.4,3.001741]
[1768382829643,0.002,3331.7,3331.4,6.003482]
[1768382829957,0.002,3331.7,3331.4,7.43094584]
[1768382830139,0.002,3331.7,3331.4,4.42920484]
[1768382830735,0.002,3331.7,3331.4,6.21613617]
[1768382831241,0.002,3331.7,3331.4,9.21787717]
[1768382832182,0.002,3331.7,3331.4,6.21613617]
[1768382832545,0.002,3332.0,3331.4,6.21613617]
[1768382832944,0.002,3332.0,3331.6,1.78693133]
[1768382834389,0.002,3332.0,3331.6,4.78841067]
[1768382834858,0.002,3332.0,3331.7,1.78693133]
[1768382835845,0.002,3332.0,3331.6,6.00304015]
[1768382836046,0.002,3332.0,3331.6,7.78997148]
[1768382836245,0.002,3332.0,3331.7,1.78693133]
[1768382838548,0.002,3332.0,3331.8,3.00138063]
[1768382838749,0.002,3332.0,3331.8,2.95138063]
[1768382839278,0.002,3332.0,3331.8,2.90138063]
[1768382839486,0.002,3332.0,3331.6,4.05674374]
[1768382840583,0.002,3332.0,3331.6,3.00152077]
[1768382841382,0.002,3331.7,3331.6,3.00152077]
[1768382844002,0.002,3332.0,3331.6,3.00152077]
[1768382845956,1.89629559,3331.9,3331.5,3.00164008]
[1768382846156,1.89629559,3331.6,3330.7,1.794883]
[1768382846354,2.08592515,3331.5,3330.3,1.794883]
[1768382846582,2.08592515,3331.5,3330.8,3.00227758]
[1768382848071,2.08592515,3331.5,3330.7,3.00234265]
[1768382848596,1.89629559,3331.3,3330.6,3.00245712]
[1768382849760,1.89629559,3331.3,3330.6,6.00491913]
[1768382850198,1.89629559,3331.3,3330.6,7.29513355]
[1768382850402,1.89629559,3331.3,3330.6,9.09001655]
[1768382852002,1.89629559,3331.6,3330.7,1.794883]
[1768382853306,1.89629559,3331.6,3330.9,0.001]
[1768382853970,1.89629559,3331.4,3330.9,0.001]
[1768382861825,1.94426261,3331.6,3330.9,0.001]
[1768382862117,2.43883686,3331.5,3330.9,0.001]
[1768382862488,1.94426261,3331.4,3330.9,0.001]
[1768382862723,2.35726261,3331.4,3330.9,0.001]
[1768382863017,1.94426261,3331.1,3329.8,3.00310836]
[1768382863218,0.09180629,3331.2,3329.8,3.00310836]